bitfinex/quotes_ETHUSD_20250219
["timestamp","ask_amount","ask_price","bid_price","bid_amount"]
[1739997618762,0.7571,2723.6,2723.0,5.37]
[1739997618943,3.67181,2723.5,2723.0,5.37]
[1739997619138,3.71033878,2723.5,2723.0,5.37]
[1739997619529,0.48527266,2723.5,2723.0,5.37]
[1739997619928,3.71027878,2723.5,2723.0,5.37]
[1739997620162,0.03852878,2723.5,2723.0,5.37]
[1739997620365,0.03852878,2723.5,2723.1,3.6722]
[1739997620558,0.03852878,2723.5,2723.1,7.3444]
[1739997620864,0.03852878,2723.5,2723.2,3.67213]
[1739997622065,0.03852878,2723.5,2723.1,7.34438]
[1739997622734,0.03852878,2723.5,2723.2,3.67208]
[1739997622936,0.03852878,2723.5,2723.3,3.67191]
[1739997623256,0.03852878,2723.5,2723.4,3.67188]
[1739997623862,0.7571,2724.2,2723.7,3.67145]
[1739997624361,0.03768944,2724.1,2723.7,3.67135]
[1739997624732,0.03768944,2724.1,2723.7,7.34275]
[1739997624932,0.03768944,2724.1,2723.7,3.67135]
[1739997625545,3.70864944,2724.1,2723.5,3.67163]
[1739997625747,3.6712,2723.9,2723.1,3.67215]
[1739997625967,0.7571,2723.8,2723.1,3.67215]
[1739997626564,3.67154,2723.7,2723.1,3.67215]
[1739997626970,3.71196737,2723.7,2723.2,3.67213]
[1739997627672,7.38352737,2723.7,2723.2,3.67213]
[1739997627871,3.71196737,2723.7,2723.2,3.67213]
[1739997628278,3.67148,2723.7,2723.2,3.67213]
[1739997628831,4.42844,2723.8,2723.2,3.67213]
[1739997629136,3.67149,2723.7,2723.2,3.67213]
[1739997629560,7.34308,2723.7,2723.2,3.67213]
[1739997629773,3.67149,2723.7,2723.0,4.46811]
[1739997629965,3.67149,2723.7,2723.0,3.67241]
[1739997629966,3.6717,2723.6,2723.0,3.67241]
[1739997630878,3.6717,2723.6,2723.0,7.34475]
[1739997631180,3.6717,2723.6,2723.1,3.67226]
[1739997632443,3.6717,2723.6,2722.9,3.67255]
[1739997632444,0.10779549,2723.5,2722.9,3.67255]
[1739997632650,0.10779549,2723.5,2723.0,4.117185]
[1739997633148,0.10767762,2723.4,2723.0,4.117185]
[1739997633984,0.10767762,2723.4,2723.1,3.67228]
[1739997634285,0.10767762,2723.4,2723.0,0.444835]
[1739997634286,0.7571,2723.8,2723.2,3.67208]
[1739997634469,0.10763461,2723.3,2723.2,3.67208]
[1739997634669,3.67148,2723.7,2723.2,4.0837715]
[1739997634867,3.67148,2723.7,2723.2,3.67208]
[1739997635069,0.10775732,2723.6,2723.2,3.67208]
[1739997635379,0.10775732,2723.6,2723.5,3.67174]
[1739997635584,0.7571,2723.8,2723.3,0.7845]
[1739997635754,0.10781294,2723.7,2723.2,3.67208]
[1739997635956,3.77938294,2723.7,2723.0,4.117125]
[1739997636165,3.67162,2723.6,2723.0,3.67229]
[1739997636371,0.10790958,2723.5,2723.0,3.67229]
[1739997636776,3.77974958,2723.5,2722.9,11.14356]
[1739997636983,3.77974958,2723.5,2722.9,7.47107]
[1739997637286,4.60696387,2723.5,2723.0,7.34472]
[1739997637658,3.77974958,2723.5,2723.0,3.67232]
[1739997637899,3.77974958,2723.5,2723.0,7.34468]
[1739997638092,3.77974958,2723.5,2723.0,3.67232]
[1739997638463,0.10790958,2723.5,2723.1,3.67224]
[1739997638658,0.10790958,2723.5,2723.1,3.67216]
[1739997639697,3.67148,2723.7,2723.1,3.67216]
[1739997639863,0.10409148,2723.4,2723.1,3.67216]
[1739997640062,3.67148,2723.7,2723.1,3.67228]
[1739997640290,0.10404848,2723.3,2723.0,3.67242]
[1739997640469,3.67148,2723.7,2723.2,3.67202]
[1739997640675,0.7571,2723.8,2723.3,3.67189]
[1739997641903,3.67147,2723.7,2723.2,3.67202]
[1739997642276,4.481448,2723.7,2723.0,7.34465]
[1739997642489,3.67167,2723.6,2723.0,3.67232]
[1739997642965,4.42856,2723.8,2723.2,3.67204]
[1739997643166,3.67166,2723.6,2723.1,3.67226]
[1739997643567,0.10359685,2723.5,2723.2,3.67208]
[1739997643763,3.67154,2723.7,2723.2,3.67208]
[1739997643976,0.10363985,2723.6,2723.1,3.67227]
[1739997644381,3.67184,2723.5,2723.0,3.67231]
[1739997644671,0.10359033,2723.4,2723.0,7.34464]
[1739997644876,0.10359033,2723.4,2723.0,4.486634]
[1739997645277,3.67162,2723.6,2723.0,8.158954]
[1739997645600,3.67149,2723.7,2723.1,3.67222]
[1739997645776,0.10360901,2723.5,2723.1,3.67222]
[1739997645975,7.34305,2723.7,2723.1,3.67222]
[1739997646177,0.10365201,2723.6,2723.1,3.67222]
[1739997646377,3.77533201,2723.6,2723.1,4.5679654]
[1739997646578,3.67176,2723.5,2723.1,0.8957454]
[1739997646779,0.7571,2723.8,2723.1,4.5679254]
[1739997646780,0.10359033,2723.4,2723.1,4.5679254]
[1739997647112,3.67154,2723.7,2723.1,4.5679254]
[1739997647410,0.7571,2723.8,2723.1,4.5679254]
[1739997647621,0.0999364,2723.6,2723.2,3.67209]
[1739997647775,3.77150939,2723.7,2723.2,3.67209]
[1739997648111,3.67168,2723.6,2723.0,3.67229]
[1739997648291,3.6717,2723.6,2723.0,3.67228]
[1739997648489,0.0998934,2723.5,2722.9,4.47107]
[1739997648690,0.7571,2723.3,2722.6,4.44605]
[1739997648894,0.7571,2723.3,2722.7,3.67276]
[1739997649131,0.09974989,2723.2,2722.8,3.67267]
[1739997649419,0.7571,2723.3,2722.8,3.67267]
[1739997649712,0.09971904,2723.1,2722.8,3.67259]
[1739997649911,0.09976205,2723.2,2722.8,0.444579]
[1739997650113,0.09967603,2723.0,2722.9,3.67255]
[1739997650316,0.7571,2723.3,2722.9,3.67255]
[1739997650487,0.09967603,2723.0,2722.9,3.67255]
[1739997650687,0.7571,2723.3,2723.0,3.67238]
[1739997650894,0.09967603,2723.0,2722.9,3.67254]
[1739997651209,0.09967603,2723.0,2722.9,4.4515179]
[1739997651438,0.7571,2723.3,2722.9,4.4515179]
[1739997651647,0.09967603,2723.0,2722.9,3.67254]
[1739997651942,0.7571,2723.3,2722.9,3.67254]
[1739997652119,0.09967603,2723.0,2722.9,3.67254]
[1739997652321,0.7571,2723.3,2722.9,3.67254]
[1739997652520,0.09967603,2723.0,2722.9,3.67254]
[1739997652718,0.7571,2723.3,2722.9,3.67254]
[1739997652921,0.09967603,2723.0,2722.8,7.34522]
[1739997653123,0.7571,2723.3,2722.8,7.34522]
[1739997653331,0.09954785,2722.9,2722.7,3.67281]
[1739997653532,4.42916,2723.3,2722.6,4.44607]
[1739997653533,3.6722,2723.2,2722.6,4.44607]
[1739997653734,0.09926554,2722.8,2722.7,3.67282]
[1739997653944,3.6722,2723.2,2722.7,3.67282]
[1739997654117,0.09889925,2722.8,2722.7,3.67282]
[1739997654319,0.7571,2723.3,2722.9,3.67246]
[1739997654518,0.7571,2723.3,2723.1,3.67219]
[1739997654742,0.7571,2723.5,2723.2,3.67207]
[1739997654956,5.36,2723.7,2723.5,3.67172]
[1739997655825,5.36,2723.7,2723.5,3.67165]
[1739997656025,5.36,2723.7,2723.5,4.038815]
[1739997656248,5.36,2723.7,2723.5,0.367165]
[1739997656462,9.03148,2723.7,2723.1,3.67221]
[1739997657131,0.7571,2723.4,2722.8,3.67268]
[1739997657315,4.42905,2723.4,2722.7,3.67271]
[1739997657835,7.34417,2723.3,2722.6,3.67285]
[1739997658012,3.77087202,2723.3,2722.7,7.34554]
[1739997658207,3.77087202,2723.3,2722.7,7.34547]
[1739997658433,0.09879202,2723.3,2723.0,3.67241]
[1739997658644,0.09879202,2723.3,2723.0,3.6723]
[1739997658823,0.09879202,2723.3,2723.2,3.67215]
[1739997659258,0.7571,2723.6,2723.2,3.67203]
[1739997659458,0.7571,2723.6,2723.1,0.44609]
[1739997659659,0.7571,2723.6,2723.2,3.67206]
[1739997660230,0.7571,2723.8,2722.9,0.7886]
[1739997660484,4.42856,2723.8,2723.2,3.67209]
[1739997660787,4.42844,2723.8,2723.1,3.67215]
[1739997660951,3.67159,2723.7,2723.1,3.67215]
[1739997661155,3.67161,2723.6,2723.1,4.485475]
[1739997661584,0.0987978,2723.5,2723.1,4.485475]
[1739997661885,0.0987978,2723.5,2723.1,0.813325]
[1739997662063,0.7571,2723.4,2722.9,3.67246]
[1739997662227,0.7571,2723.4,2722.7,3.67275]
[1739997662570,4.42954,2723.0,2722.3,8.11612]
[1739997662754,6.79105443,2723.2,2722.1,0.7696]
[1739997662755,3.6727,2722.8,2722.1,0.7696]
[1739997663072,3.67318,2722.5,2721.9,0.7696]
[1739997663246,3.67318,2722.5,2721.8,3.67396]
[1739997663247,0.7571,2722.4,2721.8,3.67396]
[1739997663447,0.85558691,2722.4,2721.8,3.67396]
[1739997663644,4.52888691,2722.4,2721.7,3.67411]
[1739997663844,0.7571,2722.3,2721.6,3.6743]
[1739997664045,7.54935443,2722.3,2721.6,3.6743]
[1739997664299,0.09830955,2722.2,2721.6,3.6743]
[1739997664639,0.09830955,2722.2,2721.3,0.7851]
[1739997664640,0.09830955,2722.2,2721.3,4.45969]
[1739997664941,0.09830955,2722.2,2721.5,3.67439]
[1739997664942,0.7571,2722.1,2721.5,3.67439]
[1739997665186,0.7571,2722.1,2721.4,7.795019]
[1739997665376,0.09822345,2722.0,2721.4,4.120449]
[1739997665588,0.7571,2721.9,2721.3,3.0]
[1739997665889,0.09813734,2721.8,2721.4,3.6745]
[1739997666089,0.09813734,2721.8,2721.7,3.67417]
[1739997666385,0.09813734,2721.8,2721.5,3.67439]
[1739997666599,0.09813734,2721.8,2721.3,6.67461]
[1739997666763,0.09813734,2721.8,2721.3,4.792485]
[1739997666970,3.77217734,2721.8,2721.2,3.67474]
[1739997667171,0.09813734,2721.8,2721.2,3.67474]
[1739997667407,0.09813734,2721.8,2721.3,3.67467]
[1739997667914,0.09813734,2721.8,2721.0,3.67508]
[1739997668068,4.43136,2721.7,2721.1,3.67496]
[1739997668265,0.7571,2721.7,2721.2,3.67484]
[1739997668783,0.09703344,2721.6,2721.2,3.67484]
[1739997668985,0.09703344,2721.6,2721.2,3.67476]
[1739997669308,0.09703344,2721.6,2721.1,3.67488]
[1739997670270,0.09703344,2721.6,2721.2,3.67474]
[1739997670910,0.09703344,2721.6,2721.1,3.67493]
[1739997671094,0.7571,2721.5,2720.8,3.67534]
[1739997671280,0.7571,2721.5,2720.6,3.8262]
[1739997671281,0.7571,2721.3,2720.7,7.35088]
[1739997671480,0.7571,2721.3,2720.8,3.67528]
[1739997671685,0.09678803,2721.2,2720.8,3.67528]
[1739997672013,0.7571,2721.3,2720.9,3.67522]
[1739997672200,0.09658575,2721.2,2720.9,3.67522]
[1739997672401,0.7571,2721.3,2721.0,3.67503]
[1739997672601,0.09658575,2721.2,2721.0,3.67511]
[1739997672788,0.7571,2721.3,2720.9,3.67522]
[1739997672987,0.09658575,2721.2,2721.0,3.67504]
[1739997673177,0.7571,2721.3,2721.0,3.67504]
[1739997673377,0.09658575,2721.2,2720.9,3.67522]
[1739997673680,6.1171,2721.5,2721.4,3.67457]
[1739997673985,0.7571,2721.7,2721.5,3.67435]
[1739997674192,0.7571,2721.7,2721.6,3.6743]
[1739997674373,0.7571,2721.7,2721.3,3.67462]
[1739997674917,0.7571,2721.7,2721.1,3.67498]
[1739997675214,0.7571,2721.7,2721.4,3.67445]
[1739997675990,0.09504992,2721.6,2721.5,3.67438]
[1739997676190,0.09504992,2721.6,2721.3,3.67462]
[1739997677115,0.09504992,2721.6,2721.5,3.67444]
[1739997677495,0.7571,2721.8,2721.3,3.67459]
[1739997677811,0.09518152,2721.7,2721.4,3.67457]
[1739997678018,0.7571,2721.8,2721.5,3.6744]
[1739997678317,0.09518152,2721.7,2721.5,3.6744]
[1739997678483,0.09518152,2721.7,2721.3,3.67457]
[1739997678683,0.7571,2721.8,2721.2,3.67475]
[1739997678908,0.09513845,2721.6,2721.4,3.67456]
[1739997679112,0.09518152,2721.7,2721.5,3.67437]
[1739997679324,0.7571,2722.1,2721.4,4.43476]
[1739997679482,0.7571,2722.1,2721.9,3.67382]
[1739997679832,0.7571,2722.4,2722.1,3.67362]
[1739997679983,0.7571,2722.4,2722.3,3.67336]
[1739997680183,0.7571,2722.8,2722.4,3.67315]
[1739997680415,0.7571,2722.8,2722.3,3.67336]
[1739997680633,6.79190443,2722.5,2721.9,3.67381]
[1739997681499,6.79190443,2722.5,2721.7,4.43428]
[1739997681698,6.79190443,2722.5,2721.9,3.67388]
[1739997681898,0.7571,2722.4,2721.9,3.67388]
[1739997682199,3.67338,2722.3,2721.7,3.67413]
[1739997682405,0.7571,2722.2,2721.7,3.67413]
[1739997682934,0.7571,2722.2,2721.6,3.6743]
[1739997683138,4.43096,2722.0,2721.3,3.67463]
[1739997683307,0.7571,2722.0,2721.7,3.67415]
[1739997683641,0.09593139,2721.9,2721.7,3.67415]
[1739997684040,0.09593139,2721.9,2721.8,3.67403]
[1739997684414,5.36,2722.1,2721.8,3.67403]
[1739997684611,5.36,2722.1,2721.9,3.67384]
[1739997684835,0.7571,2722.3,2721.9,3.67384]
[1739997685547,2.07509944,2722.3,2721.8,3.67403]
[1739997685721,5.74852944,2722.3,2721.6,7.34848]
[1739997686039,4.43064,2722.2,2721.6,3.67424]
[1739997686243,8.51875137,2722.2,2721.6,3.67424]
[1739997686423,4.84521137,2722.2,2721.7,3.67416]
[1739997686620,4.84521137,2722.2,2721.6,3.67424]
[1739997686820,0.09601752,2722.1,2721.7,3.67414]
[1739997687469,0.09601752,2722.1,2721.6,3.67422]
[1739997687764,0.09601752,2722.1,2721.7,3.67413]
[1739997688424,0.09601752,2722.1,2721.7,3.67408]
[1739997688624,0.09601752,2722.1,2721.7,3.67406]
[1739997689844,0.09601752,2722.1,2721.7,3.67405]
[1739997690146,0.09601752,2722.1,2721.8,3.67395]
[1739997690617,0.09601752,2722.1,2721.9,3.67389]
[1739997691254,0.09601752,2722.1,2721.9,3.67384]
[1739997691456,0.09601752,2722.1,2722.0,3.67376]
[1739997691817,5.36,2723.0,2722.7,3.67282]
[1739997691818,0.7571,2722.8,2722.7,3.67282]
[1739997692142,0.096232,2722.8,2722.7,3.67282]
[1739997692346,0.096232,2722.8,2722.6,3.67294]
[1739997692550,11.22067443,2723.1,2722.3,3.67323]
[1739997692750,0.09618897,2722.7,2722.3,3.67323]
[1739997692931,4.42993,2722.7,2722.2,3.67342]
[1739997693136,3.76912593,2722.6,2722.0,3.67368]
[1739997693363,0.7571,2722.4,2721.9,3.67389]
[1739997693673,0.09649085,2722.3,2721.9,3.67389]
[1739997694072,0.09649085,2722.3,2721.8,3.67396]
[1739997694274,0.09649085,2722.3,2722.0,3.67375]
[1739997694416,0.09649085,2722.3,2721.8,3.67395]
[1739997694617,0.59442419,2722.3,2721.6,3.6742]
[1739997694817,3.6735,2722.2,2721.6,3.6742]
[1739997695045,0.85327394,2722.1,2721.6,3.6742]
[1739997695664,0.85327394,2722.1,2721.7,3.67409]
[1739997696166,0.85327394,2722.1,2721.6,3.6742]
[1739997696321,0.85327394,2722.1,2721.8,3.67403]
[1739997696902,0.85327394,2722.1,2721.8,3.67394]
[1739997697099,0.85327394,2722.1,2721.8,7.34789]
[1739997697281,0.85327394,2722.1,2721.8,3.67394]
[1739997697600,0.85327394,2722.1,2721.4,4.47635]
[1739997697601,3.6738,2722.0,2721.4,4.47635]
[1739997697799,1.60303776,2722.0,2721.5,3.67435]
[1739997698099,0.09575912,2721.9,2721.5,3.67435]
[1739997698251,0.7571,2721.8,2721.2,3.67476]
[1739997698602,4.43127,2721.7,2721.1,0.0736]
[1739997698779,3.6744,2721.6,2721.1,0.0736]
[1739997698966,5.03052438,2721.6,2721.1,0.0736]
[1739997699167,0.09548768,2721.5,2721.1,0.0736]
[1739997699607,0.09548768,2721.5,2721.4,3.67457]
[1739997699896,6.1171,2722.2,2721.9,3.67388]
[1739997700100,0.7571,2722.2,2721.9,3.67388]
[1739997700500,0.7571,2722.2,2721.8,3.67397]
[1739997701305,0.08866293,2722.1,2721.8,3.67397]
[1739997701661,0.08866293,2722.1,2722.0,3.67376]
[1739997703219,1.0281,2722.4,2722.0,3.67376]
[1739997703405,0.08898975,2722.3,2722.0,3.67376]
[1739997703573,0.08898975,2722.3,2721.9,3.67389]
[1739997704273,0.08898975,2722.3,2721.8,0.82]
[1739997704474,0.08898975,2722.3,2722.2,3.67349]
[1739997705010,0.7571,2722.7,2722.3,3.67336]
[1739997705222,0.7558,2723.0,2722.6,3.67295]
[1739997705427,0.7558,2723.0,2722.7,3.67274]
[1739997706072,0.7558,2723.0,2722.8,3.67268]
[1739997706268,9.03195,2723.4,2722.8,3.67261]
[1739997706509,4.42782,2723.3,2722.8,3.67261]
[1739997706809,4.42782,2723.3,2722.7,3.67278]
[1739997707108,8.09992,2723.3,2722.6,3.67287]
[1739997707318,3.11880443,2723.2,2722.2,3.7512]
[1739997707518,3.11880443,2723.2,2722.4,3.67314]
[1739997707519,4.42811,2723.1,2722.4,3.67314]
[1739997707809,4.42842,2722.9,2722.4,3.67314]
[1739997708306,4.42842,2722.9,2722.1,5.37]
[1739997708500,0.09026889,2722.8,2722.4,3.67315]
[1739997708695,0.09026889,2722.8,2722.2,3.67341]
[1739997708897,0.09026889,2722.8,2722.0,7.42487]
[1739997708898,3.87460443,2722.6,2722.0,3.67365]
[1739997709215,0.09010815,2722.5,2722.0,3.67365]
[1739997709613,4.42914,2722.4,2721.5,0.7512]
[1739997709781,3.76345208,2722.3,2721.5,0.7512]
[1739997709979,0.09002208,2722.3,2721.8,3.67393]
[1739997710676,3.76338208,2722.3,2721.8,3.67393]
[1739997711811,0.7571,2722.2,2721.4,3.67448]
[1739997712022,3.67371,2722.1,2721.4,3.67448]
[1739997712193,3.76319326,2722.1,2721.4,3.67448]
[1739997712920,3.67376,2722.0,2721.4,7.34898]
[1739997713212,0.08926931,2721.9,2721.4,3.67448]
[1739997713421,0.08926931,2721.9,2721.4,4.788176]
[1739997715014,0.7571,2721.8,2721.4,4.788176]
[1739997715199,0.7571,2721.8,2721.5,3.67438]
[1739997715398,0.08919536,2721.7,2721.5,3.67438]
[1739997715614,0.7571,2722.1,2721.7,3.6741]
[1739997715988,0.08932454,2722.0,2721.7,3.6741]
[1739997716391,0.08932454,2722.0,2721.9,3.6739]
[1739997716634,5.36,2722.2,2722.0,3.67369]
[1739997716950,0.7571,2722.4,2722.1,3.67356]
[1739997718700,3.94396,2722.6,2722.2,3.67343]
[1739997718701,0.271,2722.6,2722.2,3.67343]
[1739997718898,0.271,2722.6,2722.3,3.67328]
[1739997719094,0.7571,2722.7,2722.3,4.407966]
[1739997719298,0.7571,2722.7,2722.5,3.67302]
[1739997719526,5.36,2723.0,2722.5,3.67302]
[1739997719731,0.7571,2722.9,2722.5,3.67302]
[1739997719929,0.7571,2722.9,2722.2,0.7678]
[1739997720132,5.36,2723.1,2722.9,3.67247]
[1739997720133,0.7571,2723.1,2722.9,3.67247]
[1739997721198,6.1171,2723.3,2722.9,3.67247]
[1739997721424,6.1171,2723.3,2722.7,0.7678]
[1739997721629,6.1171,2723.3,2722.9,3.67248]
[1739997722131,6.1171,2723.3,2722.8,3.67268]
[1739997722325,6.1171,2723.3,2722.9,3.67254]
[1739997724358,6.1171,2723.3,2722.5,3.67299]
[1739997724499,0.7571,2723.1,2722.5,3.67299]
[1739997724705,3.67249,2723.0,2722.3,3.67325]
[1739997724932,3.67249,2723.0,2722.3,4.417665]
[1739997725664,0.7571,2723.1,2722.3,0.744415]
[1739997725807,0.7571,2723.1,2722.8,3.67258]
[1739997726562,0.7571,2723.1,2722.6,3.67286]
[1739997726797,4.42945,2723.1,2722.3,0.744415]
[1739997726905,4.42976,2722.9,2722.2,7.34679]
[1739997727313,4.42976,2722.9,2721.7,6.104845]
[1739997727314,0.7571,2722.7,2721.7,0.734845]
[1739997727518,4.42993,2722.7,2722.0,3.67368]
[1739997727726,0.7571,2722.7,2722.0,4.041048]
[1739997728081,0.7571,2722.7,2722.4,3.67312]
[1739997728202,1.0281,2723.0,2722.5,3.67299]
[1739997728808,1.0281,2723.0,2722.5,7.34599]
[1739997729067,1.0281,2723.0,2722.5,3.67299]
[1739997729447,1.0281,2723.0,2722.3,7.3465]
[1739997729615,0.7571,2722.4,2721.8,9.04394]
[1739997729959,3.67339,2722.3,2721.6,3.67419]
[1739997730325,0.7571,2722.4,2721.4,1.901596]
[1739997730543,0.7571,2722.4,2721.7,3.67416]
[1739997730544,3.67338,2722.3,2721.7,3.67416]
[1739997730927,7.34682,2722.3,2721.7,3.67416]
[1739997731110,3.67338,2722.3,2721.7,3.67416]
[1739997731543,0.7571,2722.4,2722.1,3.67357]
[1739997732240,0.7571,2722.4,2721.9,3.67388]
[1739997732441,0.7571,2722.4,2721.7,3.67415]
[1739997732635,3.67343,2722.3,2721.6,3.6743]
[1739997733219,3.6735,2722.2,2721.6,3.6743]
[1739997733712,0.7571,2722.6,2722.3,3.67328]
[1739997734241,0.7571,2722.6,2722.0,3.67366]
[1739997734410,0.7571,2722.6,2722.1,0.444846]
[1739997734607,0.271,2722.7,2722.4,3.67315]
[1739997734804,0.7571,2722.8,2722.4,7.34628]
[1739997735205,0.7571,2722.8,2722.5,3.67299]
[1739997735743,0.7571,2722.8,2722.4,3.67314]
[1739997735947,0.7571,2722.8,2722.3,3.67328]
[1739997736424,0.7571,2722.8,2722.4,3.67321]
[1739997736745,0.7571,2722.8,2722.3,4.040608]
[1739997736916,0.7571,2722.8,2722.4,3.67317]
[1739997737358,0.7571,2722.8,2722.3,4.040608]
[1739997738249,0.7571,2722.8,2722.3,0.367328]
[1739997738547,3.67291,2722.7,2721.9,8.12246]
[1739997738745,7.54869443,2722.8,2721.9,0.7748]
[1739997738746,0.7571,2722.8,2721.9,0.7748]
[1739997738941,0.7571,2722.8,2722.2,3.67346]
[1739997739330,0.7571,2722.8,2722.3,3.67324]
[1739997739520,0.7571,2722.8,2722.4,0.73467]
[1739997739722,0.7571,2722.8,2722.4,4.40788]
[1739997740123,0.7571,2722.8,2722.4,0.73467]
[1739997740320,0.7571,2723.1,2722.4,1.55457]
[1739997740556,6.1171,2723.4,2723.0,3.67242]
[1739997740724,0.7571,2723.7,2722.8,3.0]
[1739997740924,0.7571,2723.7,2723.5,3.67174]
[1739997741242,5.36,2723.8,2723.6,3.6716]
[1739997741440,0.7571,2724.3,2723.5,3.67174]
[1739997741656,4.81535044,2724.3,2723.5,3.67166]
[1739997741817,4.81535044,2724.3,2723.5,3.67165]
[1739997742337,6.1171,2724.6,2723.9,0.7573]
[1739997742653,4.42736,2724.6,2723.9,0.7573]
[1739997742873,3.67062,2724.4,2723.6,0.7573]
[1739997743071,4.480432,2724.4,2723.6,0.7573]
[1739997743274,4.480432,2724.4,2723.4,9.04187]
[1739997743275,0.809812,2724.4,2723.4,9.04187]
[1739997743426,3.67114,2724.0,2723.4,5.37]
[1739997743625,3.67114,2724.0,2723.3,0.7573]
[1739997744046,5.36,2724.2,2723.4,3.67178]
[1739997744273,5.36,2724.2,2723.5,3.67166]
[1739997744476,5.36,2724.2,2723.7,3.67146]
[1739997744679,9.03081,2724.2,2723.5,3.67166]
[1739997744838,9.03081,2724.2,2723.5,4.481751]
[1739997745221,5.36,2724.2,2723.7,3.67141]
[1739997745452,5.36,2724.2,2723.8,3.67126]
[1739997745655,5.36,2724.2,2723.7,3.8035]
[1739997746023,5.36,2724.2,2723.9,3.67111]
[1739997746365,0.08881565,2724.1,2724.0,0.734234]
[1739997746518,0.08881565,2724.1,2723.9,3.67113]
[1739997746723,0.08881565,2724.1,2724.0,3.67107]
[1739997747127,4.42727,2724.7,2723.9,3.67113]
[1739997747352,0.08884363,2724.1,2724.0,0.367113]
[1739997747570,0.7571,2724.7,2724.0,0.367113]
[1739997747576,3.67034,2724.6,2724.0,0.367113]
[1739997747735,3.67034,2724.6,2723.7,4.47486]
[1739997748061,0.7571,2724.3,2723.5,6.180091]
[1739997748262,0.08915557,2724.2,2723.5,6.180091]
[1739997748462,0.08915557,2724.2,2723.5,9.851741]
[1739997748848,0.08915557,2724.2,2723.6,3.67158]
[1739997749049,0.08915557,2724.2,2723.8,3.67132]
[1739997749253,0.7571,2724.3,2723.8,3.67127]
[1739997749449,0.08599856,2724.2,2723.7,0.9851671]
[1739997750562,0.08599856,2724.2,2723.8,3.67132]
[1739997750966,0.7571,2724.3,2723.8,3.67132]
[1739997751131,0.08598623,2724.1,2723.8,4.50412171]
[1739997751334,0.08602921,2724.2,2723.8,4.50412171]
[1739997751547,0.08594325,2724.0,2723.8,0.83280171]
[1739997751764,0.7571,2724.3,2723.8,0.83280171]
[1739997751953,0.08590027,2723.9,2723.5,5.37]
[1739997752158,3.67081,2724.2,2723.5,9.04171]
[1739997752655,0.08598623,2724.1,2723.5,9.04171]
[1739997753375,0.08598623,2724.1,2724.0,3.67107]
[1739997753580,0.08598623,2724.1,2724.0,0.367107]
[1739997753741,4.42742,2724.6,2724.0,0.367107]
[1739997753948,0.08597252,2724.1,2723.7,3.6714]
[1739997754263,0.08592954,2724.0,2723.7,3.67147]
[1739997754458,3.67039,2724.5,2723.7,3.67147]
[1739997754660,0.08610144,2724.4,2723.7,3.67139]
[1739997755056,3.67068,2724.3,2723.6,3.0]
[1739997755384,3.7568155,2724.2,2723.6,3.0]
[1739997755557,3.7568155,2724.2,2723.6,4.65363]
[1739997755758,0.7571,2724.1,2723.6,4.65363]
[1739997755959,0.7571,2724.1,2723.6,8.32524]
[1739997756180,0.08559994,2724.0,2723.6,8.32524]
[1739997757076,0.08559994,2724.0,2723.5,9.04165]
[1739997757077,0.08559994,2724.0,2723.5,5.37]
[1739997757447,0.08559994,2724.0,2723.5,9.04172]
[1739997757679,0.08559994,2724.0,2723.5,3.67172]
[1739997759045,0.08559994,2724.0,2723.5,7.34333]
[1739997759275,0.08559994,2724.0,2723.6,3.67161]
[1739997759480,6.111,2724.4,2723.9,4.5023]
[1739997759782,0.08570985,2724.3,2724.0,3.67101]
[1739997759980,0.08570985,2724.3,2724.1,3.67093]
[1739997760183,0.08570985,2724.3,2724.2,7.436]
[1739997760381,9.85e-06,2724.3,2724.2,9.40857344]
[1739997760585,6.3891,2725.6,2725.0,3.6697]
[1739997760880,6.3891,2725.6,2725.0,3.66965]
[1739997760881,0.7571,2725.6,2725.0,3.66965]
[1739997761248,0.7571,2725.6,2725.0,3.66961]
[1739997761445,5.404614,2725.6,2724.7,3.0]
[1739997761790,3.66922,2725.4,2724.6,3.67015]
[1739997761950,7.33852,2725.4,2724.6,3.67015]
[1739997762146,5.404664,2725.6,2724.9,3.66982]
[1739997762464,9.073674,2725.6,2724.9,3.66982]
[1739997762662,1.735674,2725.6,2724.7,3.67003]
[1739997762875,3.66928,2725.4,2724.7,3.67003]
[1739997763078,3.66926,2725.4,2724.7,3.67003]
[1739997764417,0.07799244,2725.3,2724.9,3.66974]
[1739997764567,0.07799244,2725.3,2724.9,7.33951]
[1739997764756,0.7571,2725.6,2725.0,0.788]
[1739997765286,0.07835063,2725.5,2725.0,0.788]
[1739997766079,0.07835063,2725.5,2725.3,3.66924]
[1739997766298,0.7515,2726.0,2725.6,3.6689]
[1739997766464,0.07831613,2725.4,2725.3,3.66932]
[1739997766660,9.77947,2726.3,2725.5,3.66897]
[1739997766901,3.74685949,2726.2,2725.3,3.66922]
[1739997767094,3.6683,2726.1,2725.4,3.66916]
[1739997767397,3.66852,2725.9,2725.0,4.45768]
[1739997767565,3.66885,2725.7,2725.1,3.66956]
[1739997767895,0.07847485,2725.6,2725.0,8.12732]
[1739997768095,0.07847485,2725.6,2725.0,5.807372]
[1739997768268,0.07847485,2725.6,2725.0,9.477002]
[1739997768581,0.07847485,2725.6,2725.0,5.807362]
[1739997768906,3.74750485,2725.6,2725.0,1.349732]
[1739997769061,3.74750485,2725.6,2724.9,3.66982]
[1739997769263,0.07847485,2725.6,2724.8,6.1869]
[1739997769465,0.7515,2725.3,2724.8,5.37]
[1739997769658,0.07855005,2725.2,2724.8,9.03988]
[1739997769896,3.66908,2725.5,2724.9,4.573838]
[1739997770090,0.07856628,2725.4,2724.9,4.573838]
[1739997770309,3.74783628,2725.4,2724.8,9.03988]
[1739997771279,0.07856628,2725.4,2724.8,9.03988]